bitfinex/quotes_ETHUSD_20250620
["timestamp","ask_amount","ask_price","bid_price","bid_amount"]
[1750454449997,17.52769236,2419.6,2419.5,4.19525404]
[1750454450201,17.75748507,2419.6,2419.5,4.19525404]
[1750454450728,17.7574178,2419.6,2419.5,4.19525404]
[1750454451223,17.7573474,2419.6,2419.5,4.19525404]
[1750454451624,17.37453891,2419.6,2419.5,4.19525404]
[1750454451831,17.75752574,2419.6,2419.5,4.19525404]
[1750454452626,17.75752807,2419.6,2419.5,4.19525404]
[1750454452991,17.75753256,2419.6,2419.5,4.19525404]
[1750454453435,17.75753256,2419.6,2419.5,4.99395404]
[1750454453436,17.37463502,2419.6,2419.5,4.99395404]
[1750454453733,17.52779318,2419.6,2419.5,4.99395404]
[1750454453893,17.37463508,2419.6,2419.5,4.99395404]
[1750454454090,17.75764753,2419.6,2419.5,4.99395404]
[1750454454296,17.75776731,2419.6,2419.5,4.99395404]
[1750454454495,17.14501667,2419.6,2419.5,4.99395404]
[1750454454721,17.75782904,2419.6,2419.5,4.99395404]
[1750454455031,17.75786198,2419.6,2419.5,4.99395404]
[1750454455829,17.75784958,2419.6,2419.5,4.99395404]
[1750454456230,17.75783726,2419.6,2419.5,4.99395404]
[1750454456430,17.75682612,2419.6,2419.5,4.99395404]
[1750454456726,17.75614365,2419.6,2419.5,4.99395404]
[1750454457798,17.7561913,2419.6,2419.5,4.99395404]
[1750454457997,17.75627043,2419.6,2419.5,4.99395404]
[1750454458224,17.75626808,2419.6,2419.5,4.99395404]
[1750454458429,17.75634518,2419.6,2419.5,9.76395319]
[1750454458595,17.75634647,2419.6,2419.5,9.76395319]
[1750454458995,17.52665029,2419.6,2419.5,9.76395319]
[1750454459299,17.7563421,2419.6,2419.5,11.15365832]
[1750454459625,17.75634669,2419.6,2419.5,11.15365832]
[1750454459830,17.75634359,2419.6,2419.5,11.15365832]
[1750454460032,17.75632393,2419.6,2419.5,11.15365832]
[1750454460229,10.99532393,2419.6,2419.5,11.15365832]
[1750454460533,17.75628397,2419.6,2419.5,11.15365832]
[1750454461032,17.7562703,2419.6,2419.5,11.15365832]
[1750454461255,17.75622504,2419.6,2419.5,11.15365832]
[1750454461399,10.9951245,2419.6,2419.5,11.15365832]
[1750454461605,17.7561245,2419.6,2419.5,11.15365832]
[1750454461933,17.52644871,2419.6,2419.5,11.15365832]
[1750454462098,17.52628253,2419.6,2419.5,11.15365832]
[1750454462405,17.52618104,2419.6,2419.5,11.15365832]
[1750454462806,16.761,2419.6,2419.5,11.15365832]
[1750454463018,7.52616592,2419.6,2419.5,11.15365832]
[1750454463234,7.1435918,2419.6,2419.5,11.15365832]
[1750454463434,7.52616594,2419.6,2419.5,11.15365832]
[1750454463601,7.52612003,2419.6,2419.5,11.15365832]
[1750454464202,7.52594883,2419.6,2419.5,11.15365832]
[1750454464815,7.1434658,2419.6,2419.5,11.15365832]
[1750454464998,7.5258062,2419.6,2419.5,11.15365832]
[1750454465412,0.3824658,2419.6,2419.5,11.15365832]
[1750454465903,0.76481297,2419.6,2419.5,11.15365832]
[1750454466148,0.38234717,2419.6,2419.5,11.15365832]
[1750454466331,0.7646784,2419.6,2419.5,11.15365832]
[1750454466500,0.76467608,2419.6,2419.5,11.15365832]
[1750454467012,0.76467495,2419.6,2419.5,11.15365832]
[1750454467248,6.76,2419.7,2419.6,4.13291453]
[1750454467403,7.52471708,2419.7,2419.6,6.12596162]
[1750454467742,7.52469087,2419.7,2419.6,6.12596162]
[1750454468112,7.14233187,2419.7,2419.6,6.12596162]
[1750454468314,7.52467081,2419.7,2419.6,6.12596162]
[1750454468534,7.52466561,2419.7,2419.6,6.12596162]
[1750454469036,7.52468244,2419.7,2419.6,6.12596162]
[1750454469744,1.757,2420.0,2419.9,4.13240216]
[1750454470040,8.89835406,2420.0,2419.9,4.13240216]
[1750454470215,9.51012084,2420.0,2419.9,4.13240216]
[1750454470837,26.68830636,2420.0,2419.9,4.13240216]
[1750454471045,26.68822809,2420.0,2419.9,4.13240216]
[1750454471218,26.68820279,2420.0,2419.9,4.13240216]
[1750454471419,25.69418552,2420.0,2419.9,4.13240216]
[1750454471742,26.6881372,2420.0,2419.9,4.13240216]
[1750454472240,25.69418552,2420.0,2419.9,4.13240216]
[1750454472443,26.30583247,2420.0,2419.9,4.13240216]
[1750454472643,26.68811779,2420.0,2419.9,4.13240216]
[1750454472850,26.68814877,2420.0,2419.9,4.13240216]
[1750454473015,10.0,2419.9,2419.8,4.13244455]
[1750454473215,10.76458368,2419.9,2419.8,4.13244455]
[1750454473434,10.99396217,2419.9,2419.8,4.13244455]
[1750454473811,10.99394205,2419.9,2419.8,4.13244455]
[1750454474335,10.99389887,2419.9,2419.8,4.13244455]
[1750454474643,10.99389925,2419.9,2419.8,4.13244455]
[1750454475042,10.99390032,2419.9,2419.8,4.13244455]
[1750454475242,10.99391603,2419.9,2419.8,4.13244455]
[1750454475607,0.6101,2419.8,2419.6,4.13282286]
[1750454475813,18.61883598,2419.7,2419.6,4.13282286]
[1750454476015,18.00720047,2419.7,2419.6,4.13282286]
[1750454476217,18.61881925,2419.7,2419.6,4.13282286]
[1750454476417,0.0601,2419.6,2419.5,8.90300719]
[1750454476647,1.82700458,2419.6,2419.5,8.90300719]
[1750454476807,1.59763755,2419.6,2419.5,8.90300719]
[1750454477011,1.82700084,2419.6,2419.5,8.90300719]
[1750454477212,1.82699517,2419.6,2419.5,8.90300719]
[1750454477913,1.59763401,2419.6,2419.5,8.90300719]
[1750454478120,1.82700567,2419.6,2419.5,8.90300719]
[1750454478664,1.82739476,2419.6,2419.5,8.90300719]
[1750454478820,8.35643433,2419.6,2419.5,8.90300719]
[1750454479019,8.58605656,2419.6,2419.5,8.90300719]
[1750454479219,8.58613589,2419.6,2419.5,4.13300804]
[1750454479446,8.58617023,2419.6,2419.5,4.13300804]
[1750454479721,8.58616018,2419.6,2419.5,4.13300804]
[1750454479929,8.20347446,2419.6,2419.5,4.13300804]
[1750454480134,8.58620845,2419.6,2419.5,4.13300804]
[1750454480557,8.35656806,2419.6,2419.5,4.13300804]
[1750454480764,8.58620713,2419.6,2419.5,4.13300804]
[1750454480931,8.20347314,2419.6,2419.5,4.13300804]
[1750454481137,8.58621317,2419.6,2419.5,4.13300804]
[1750454481549,8.58621682,2419.6,2419.5,4.13300804]
[1750454482331,8.58621378,2419.6,2419.5,4.13300804]
[1750454482655,18.58622769,2419.6,2419.5,4.13300804]
[1750454482856,18.58617842,2419.6,2419.5,4.13300804]
[1750454483348,18.58617055,2419.6,2419.5,4.13300804]
[1750454483549,18.20344808,2419.6,2419.5,4.13300804]
[1750454483758,18.58616,2419.6,2419.5,4.13300804]
[1750454483927,17.97381192,2419.6,2419.5,4.13300804]
[1750454484128,18.58608377,2419.6,2419.5,4.13300804]
[1750454484334,18.5860769,2419.6,2419.5,4.13300804]
[1750454484652,18.35648183,2419.6,2419.5,4.13300804]
[1750454484857,18.58604807,2419.6,2419.5,4.13300804]
[1750454485068,18.58599398,2419.6,2419.5,4.13300804]
[1750454485569,17.5911,2419.6,2419.5,4.13300804]
[1750454485772,18.58588425,2419.6,2419.5,4.13300804]
[1750454486067,18.58588184,2419.6,2419.5,4.13300804]
[1750454486276,18.58587972,2419.6,2419.5,4.13300804]
[1750454486742,18.58587882,2419.6,2419.5,4.13300804]
[1750454487275,18.58587652,2419.6,2419.5,4.13300804]
[1750454487461,18.58586761,2419.6,2419.5,4.13300804]
[1750454487863,18.52576761,2419.6,2419.5,4.13300804]
[1750454488469,7.7605388,2419.6,2419.5,4.13300804]
[1750454488775,8.52568401,2419.6,2419.5,4.13300804]
[1750454489076,8.52570234,2419.6,2419.5,4.13300804]
[1750454489276,8.52570993,2419.6,2419.5,4.13300804]
[1750454489475,8.52571782,2419.6,2419.5,4.13300804]
[1750454489976,8.52571361,2419.6,2419.5,4.13300804]
[1750454490174,8.52570137,2419.6,2419.5,4.13300804]
[1750454490342,8.52567007,2419.6,2419.5,4.13300804]
[1750454490543,8.52563991,2419.6,2419.5,4.13300804]
[1750454490945,8.52558702,2419.6,2419.5,4.13300804]
[1750454491198,7.531,2419.6,2419.5,4.13300804]
[1750454491345,8.2960581,2419.6,2419.5,4.13300804]
[1750454491640,8.52557346,2419.6,2419.5,4.13300804]
[1750454491845,7.75257346,2419.6,2419.5,4.13300804]
[1750454492040,7.37002675,2419.6,2419.5,4.13300804]
[1750454492274,7.75251931,2419.6,2419.5,4.13300804]
[1750454492493,7.75251942,2419.6,2419.5,4.13300804]
[1750454492976,7.75253628,2419.6,2419.5,4.13300804]
[1750454493180,7.75253191,2419.6,2419.5,4.13300804]
[1750454493489,7.7525075,2419.6,2419.5,4.13300804]
[1750454493783,7.14052505,2419.6,2419.5,4.13300804]
[1750454493984,7.75237691,2419.6,2419.5,4.13300804]
[1750454494195,7.75234501,2419.6,2419.5,4.13300804]
[1750454494793,9.50734501,2419.6,2419.5,4.13300804]
[1750454495092,9.50718418,2419.6,2419.5,4.13300804]
[1750454495254,9.50718554,2419.6,2419.5,4.13300804]
[1750454495455,9.50718606,2419.6,2419.5,4.13300804]
[1750454495661,9.50718573,2419.6,2419.5,4.13300804]
[1750454496879,9.5071782,2419.6,2419.5,4.13300804]
[1750454497580,0.9941782,2419.6,2419.5,4.13300804]
[1750454497982,9.5041782,2419.6,2419.5,4.13300804]
[1750454498176,9.50418589,2419.6,2419.5,4.13300804]
[1750454498386,9.50419869,2419.6,2419.5,4.13300804]
[1750454498690,9.50419623,2419.6,2419.5,4.13300804]
[1750454499359,9.50404081,2419.6,2419.5,4.13300804]
[1750454499560,9.50400815,2419.6,2419.5,4.13300804]
[1750454499764,9.50391489,2419.6,2419.5,4.13300804]
[1750454500186,9.50392166,2419.6,2419.5,4.13300804]
[1750454500786,9.50406107,2419.6,2419.5,4.13300804]
[1750454500966,9.50409955,2419.6,2419.5,4.13300804]
[1750454501792,9.50408958,2419.6,2419.5,4.13300804]
[1750454502289,9.50408944,2419.6,2419.5,4.13300804]
[1750454502590,9.50412529,2419.6,2419.5,4.13300804]
[1750454502991,9.5041121,2419.6,2419.5,4.13300804]
[1750454503286,8.89234914,2419.6,2419.5,4.13300804]
[1750454503504,9.50410298,2419.6,2419.5,4.13300804]
[1750454504195,9.12175683,2419.6,2419.5,4.13300804]
[1750454504988,18.73940769,2419.6,2419.5,4.13300804]
[1750454506783,18.51,2419.6,2419.5,4.13300804]
[1750454507489,10.0,2419.6,2419.5,4.13300804]
[1750454507692,18.509,2419.6,2419.5,4.13300804]
[1750454507996,20.991,2419.6,2419.5,4.13300804]
[1750454508494,18.509,2419.6,2419.5,4.13300804]
[1750454511987,10.0,2419.6,2419.5,4.13300804]
[1750454512185,18.503,2419.6,2419.5,4.13300804]
[1750454513107,10.0,2419.6,2419.5,4.95130804]
[1750454513311,18.503,2419.6,2419.5,5.01290804]
[1750454514505,18.503,2419.6,2419.5,4.19460804]
[1750454514797,18.503,2419.6,2419.5,4.13300804]
[1750454515498,18.7323996,2419.6,2419.5,4.13300804]
[1750454515658,19.11493336,2419.6,2419.5,4.13300804]
[1750454515864,19.49738282,2419.6,2419.5,4.13300804]
[1750454518203,19.49758127,2419.6,2419.5,4.13300804]
[1750454518706,19.49809848,2419.6,2419.5,4.13300804]
[1750454519098,19.49809622,2419.6,2419.5,4.13300804]
[1750454519300,19.49811028,2419.6,2419.5,4.13300804]
[1750454519692,19.49813407,2419.6,2419.5,4.13300804]
[1750454520197,19.49817293,2419.6,2419.5,4.13300804]
[1750454520394,19.26854588,2419.6,2419.5,4.13300804]
[1750454520693,19.11542097,2419.6,2419.5,4.13300804]
[1750454520875,19.49817847,2419.6,2419.5,4.13300804]
[1750454521072,19.49816952,2419.6,2419.5,4.13300804]
[1750454521285,19.49816074,2419.6,2419.5,4.13300804]
[1750454521485,19.11440661,2419.6,2419.5,4.13300804]
[1750454521690,19.49711544,2419.6,2419.5,4.13300804]
[1750454522814,19.49686307,2419.6,2419.5,4.13300804]
[1750454523177,18.88456509,2419.6,2419.5,4.13300804]
[1750454523373,19.49667763,2419.6,2419.5,4.13300804]
[1750454523913,19.49656749,2419.6,2419.5,4.13300804]
[1750454524615,19.49657127,2419.6,2419.5,4.13300804]
[1750454524817,19.11405132,2419.6,2419.5,4.13300804]
[1750454525011,19.49656684,2419.6,2419.5,4.13300804]
[1750454525313,19.49656874,2419.6,2419.5,4.13300804]
[1750454525522,19.49655891,2419.6,2419.5,4.13300804]
[1750454525706,19.49655752,2419.6,2419.5,4.13300804]
[1750454525906,19.49655721,2419.6,2419.5,4.13300804]
[1750454526106,19.49655711,2419.6,2419.5,4.13300804]
[1750454526591,18.73150939,2419.6,2419.5,4.13300804]
[1750454526797,19.49703585,2419.6,2419.5,4.13300804]
[1750454527530,19.49703612,2419.6,2419.5,4.13300804]
[1750454527679,19.26741187,2419.6,2419.5,4.13300804]
[1750454527884,19.49703813,2419.6,2419.5,4.13300804]
[1750454528595,19.49704515,2419.6,2419.5,4.13300804]
[1750454528791,19.49704498,2419.6,2419.5,4.13300804]
[1750454529214,18.73163159,2419.6,2419.5,4.13300804]
[1750454529420,18.88471422,2419.6,2419.5,4.13300804]
[1750454530019,19.26742871,2419.6,2419.5,4.13300804]
[1750454530218,18.502,2419.6,2419.5,4.13300804]
[1750454530422,19.49704284,2419.6,2419.5,4.13300804]
[1750454530628,10.99504284,2419.6,2419.5,4.13300804]
[1750454530926,17.74304284,2419.6,2419.5,6.34140908]
[1750454531087,17.74256372,2419.6,2419.5,6.34140908]
[1750454531438,17.74256352,2419.6,2419.5,6.34140908]
[1750454531788,17.13052451,2419.6,2419.5,6.34140908]
[1750454532006,17.74247625,2419.6,2419.5,6.34140908]
[1750454532249,10.99447745,2419.6,2419.5,6.34140908]
[1750454532400,0.76500643,2419.6,2419.5,11.11140823]
[1750454532744,0.76497069,2419.6,2419.5,11.11140823]
[1750454533209,12.301,2420.1,2420.0,4.13207658]
[1750454533413,20.04352685,2420.1,2420.0,4.13207658]
[1750454534224,20.0433595,2420.1,2420.0,4.13207658]
[1750454534530,20.04318543,2420.1,2420.0,4.13207658]
[1750454534931,20.04218543,2420.1,2420.0,4.13207658]
[1750454535106,20.04208407,2420.1,2420.0,4.13207658]
[1750454535304,0.99408407,2420.1,2420.0,4.18837658]
[1750454535509,7.74108407,2420.1,2420.0,5.09680001]
[1750454535730,7.12933626,2420.1,2420.0,4.18837658]
[1750454535889,7.7417271,2420.1,2420.0,4.18837658]
[1750454536095,7.74190748,2420.1,2420.0,4.18837658]
[1750454536304,7.35921739,2420.1,2420.0,4.18837658]
[1750454536629,0.76533977,2420.1,2420.0,5.01257658]
[1750454536828,7.51200587,2420.1,2420.0,5.92707001]
[1750454537400,0.76500587,2420.1,2420.0,5.92707001]
[1750454537601,7.51100587,2420.1,2420.0,5.92707001]
[1750454538199,7.51099618,2420.1,2420.0,5.92707001]
[1750454538636,7.51075163,2420.1,2420.0,5.92707001]
[1750454538929,0.3823758,2420.1,2420.0,5.92707001]
[1750454539130,7.51075004,2420.1,2420.0,5.92707001]
[1750454539332,7.1283602,2420.1,2420.0,5.92707001]
[1750454539536,7.51069449,2420.1,2420.0,5.92707001]
[1750454539725,0.76469449,2420.1,2420.0,5.92707001]
[1750454539921,7.50969449,2420.1,2420.0,5.92707001]
[1750454540125,7.50940709,2420.1,2420.0,5.92707001]
[1750454540634,7.50906401,2420.1,2420.0,5.92707001]
[1750454540836,7.5090527,2420.1,2420.0,5.92707001]
[1750454541459,7.50905264,2420.1,2420.0,5.92707001]
[1750454542534,7.12702632,2420.1,2420.0,5.92707001]
[1750454542829,7.50883972,2420.1,2420.0,5.92707001]
[1750454543034,7.50863022,2420.1,2420.0,5.92707001]
[1750454543756,7.50859585,2420.1,2420.0,5.92707001]
[1750454543958,7.508563,2420.1,2420.0,5.92707001]
[1750454544259,7.50846244,2420.1,2420.0,10.69706916]
[1750454545166,7.50827023,2420.1,2420.0,10.69706916]
[1750454545465,7.12671803,2420.1,2420.0,10.69706916]
[1750454545757,7.12671803,2420.1,2420.0,8.90207573]
[1750454545962,7.50794162,2420.1,2420.0,8.90207573]
[1750454546765,7.5079381,2420.1,2420.0,8.90207573]
[1750454547253,7.50793212,2420.1,2420.0,8.90207573]
[1750454547863,10.0,2419.9,2419.6,4.76999915]
[1750454548064,18.55249293,2419.7,2419.6,4.76999915]
[1750454548369,19.5438764,2419.7,2419.6,4.76999915]
[1750454548565,10.55,2419.6,2418.9,4.76999915]
[1750454548778,7.18039293,2419.2,2419.0,4.13381769]
[1750454548973,0.55,2419.0,2418.8,4.13413722]
[1750454549269,7.12431402,2418.9,2418.7,4.13435599]
[1750454549465,10.55,2418.9,2418.8,4.13428146]
[1750454549624,18.055388,2418.9,2418.8,4.13428146]
[1750454549826,18.055388,2418.9,2418.7,4.13442389]
[1750454549827,10.0,2418.8,2418.7,4.13442389]
[1750454550022,10.76280087,2418.8,2418.7,4.13442389]
[1750454550227,10.38140042,2418.8,2418.7,4.13442389]
[1750454550429,10.0,2418.8,2418.7,4.13442389]
[1750454550631,18.37706396,2418.8,2418.7,4.13442389]
[1750454550875,13.00027103,2418.8,2418.6,4.1345464]
[1750454551077,18.1113371,2418.7,2418.5,4.13469571]
[1750454551243,10.0566,2418.6,2418.5,4.13469571]
[1750454551426,0.4374443,2418.6,2418.5,4.13469571]
[1750454551765,10.4374443,2418.6,2418.5,4.13469571]
[1750454551967,10.43744148,2418.6,2418.5,4.13469571]
[1750454552330,0.6087,2418.5,2418.4,4.1348745]
[1750454552526,17.3527,2418.5,2418.4,4.1348745]
[1750454554154,10.55,2418.4,2418.3,8.27631877]
[1750454554329,10.6087,2418.4,2418.3,4.13502646]
[1750454554767,10.55,2418.4,2418.3,4.13502646]
[1750454554954,11.4177,2418.4,2418.3,4.13513625]
[1750454555635,1.4177,2418.4,2418.3,4.13513625]
[1750454558274,3.9007,2418.4,2418.3,4.13513625]
[1750454558448,1.4177,2418.4,2418.3,4.13513625]
[1750454559746,11.62432937,2418.4,2418.2,4.38027921]
[1750454559952,18.492,2418.3,2418.2,4.38027921]
[1750454561052,18.5507,2418.3,2418.2,4.38027921]
[1750454562686,18.5507,2418.3,2418.2,0.24507528]
[1750454562888,18.5507,2418.3,2418.2,4.38038253]
[1750454563188,19.1007,2418.3,2418.2,0.24507528]
[1750454565793,19.9097,2418.3,2418.2,0.24507528]
[1750454566412,20.31398823,2418.3,2418.2,0.24507528]
[1750454567314,55.20673001,2418.3,2418.2,0.24507528]
[1750454567820,55.20671955,2418.3,2418.2,0.24507528]
[1750454568114,55.20670836,2418.3,2418.2,0.24507528]
[1750454568313,57.68968068,2418.3,2418.2,0.24507528]
[1750454569026,1.4177,2417.5,2417.2,4.13688569]
[1750454569175,10.809,2417.3,2416.3,0.8312]
[1750454569380,10.809,2417.3,2416.9,4.13745838]
[1750454569381,0.55,2417.0,2416.9,4.13745838]
[1750454569580,10.0,2416.9,2416.8,4.13760762]
[1750454569781,0.55,2416.9,2416.8,4.13760762]
[1750454570178,2.298,2416.9,2416.8,4.13760762]
[1750454570382,0.55,2416.8,2416.7,4.13781102]
[1750454570608,17.295,2416.8,2416.7,4.13781102]
[1750454571222,0.55,2416.6,2416.1,0.8312]
[1750454571433,0.55,2416.6,2416.5,4.13821642]
[1750454571663,0.55,2416.6,2415.4,0.2252633]
[1750454571664,0.55,2416.0,2415.4,0.2252633]
[1750454571805,0.55,2416.0,2415.9,4.13924417]
[1750454571806,2.32,2416.0,2415.9,4.13924417]
[1750454571998,10.0,2415.9,2415.7,4.13944161]
[1750454572201,0.55,2415.9,2415.8,4.13941551]
[1750454572408,7.337,2415.9,2415.8,4.13941551]
[1750454572733,10.0,2416.0,2415.9,4.19954417]
[1750454572933,16.789,2416.0,2415.9,4.19954417]
[1750454573139,10.0,2416.0,2415.9,5.03344014]
[1750454573940,9.09399597,2416.1,2416.0,4.19937284]
[1750454574298,9.09399597,2416.1,2415.9,4.13924417]
[1750454574299,10.0,2416.0,2415.9,4.13924417]
[1750454574631,12.72747139,2416.0,2415.9,4.13924417]
[1750454575444,0.55,2415.9,2415.6,0.0603]
[1750454575599,0.55,2415.9,2415.8,4.1393903]
[1750454575938,7.36,2415.9,2415.8,3.23199312]
[1750454576470,7.73796981,2415.9,2415.8,3.23199312]
[1750454576733,7.36,2415.9,2415.8,3.23199312]
[1750454576920,1.359,2416.1,2416.0,4.13907284]
[1750454577133,0.55,2416.0,2415.9,4.13912888]
[1750454577314,0.55,2416.0,2415.9,4.13924417]
[1750454577315,0.92729766,2416.0,2415.9,4.13924417]
[1750454577904,17.73829766,2416.0,2415.9,4.13924417]
[1750454578605,17.361,2416.0,2415.9,4.13924417]
[1750454578807,17.73834137,2416.0,2415.9,4.13924417]
[1750454579947,0.92711609,2416.0,2415.9,4.13924417]
[1750454580139,7.74011609,2416.0,2415.9,4.19954417]
[1750454580466,7.74129366,2416.0,2415.9,4.13924417]
[1750454581754,7.74229366,2416.0,2415.9,4.13924417]
[1750454582076,0.92729366,2416.0,2415.9,4.13924417]
[1750454582365,7.74229366,2416.0,2415.9,4.19554417]
[1750454583056,7.365,2416.0,2415.9,4.19554417]
[1750454583230,7.74224122,2416.0,2415.9,4.19554417]
[1750454583429,7.74224311,2416.0,2415.9,4.19554417]
[1750454583644,1.30448583,2416.0,2415.9,4.19554417]
[1750454583827,8.11948583,2416.0,2415.9,4.19554417]
[1750454584026,7.74224272,2416.0,2415.9,4.19554417]
[1750454584363,8.11937806,2416.0,2415.9,4.19554417]
[1750454584528,8.11932785,2416.0,2415.9,4.19554417]
[1750454584872,8.11932785,2416.0,2415.9,4.13924417]
[1750454585178,18.1193368,2416.0,2415.9,4.13924417]
[1750454585381,10.7543368,2416.0,2415.9,4.13924417]
[1750454585673,10.37715746,2416.0,2415.9,4.98644417]
[1750454585828,16.823,2416.0,2415.9,4.93014417]
[1750454586033,17.57759585,2416.0,2415.9,4.13924417]
[1750454586374,17.5775908,2416.0,2415.9,4.13924417]
[1750454587187,17.5775908,2416.0,2415.9,4.19554417]
[1750454587391,17.2002945,2416.0,2415.9,4.19554417]
[1750454587597,17.57758816,2416.0,2415.9,4.19554417]
[1750454587746,17.57758816,2416.0,2415.9,4.13924417]
[1750454587949,17.57816114,2416.0,2415.9,4.13924417]
[1750454588177,17.5782125,2416.0,2415.9,4.13924417]
[1750454588645,16.823,2416.0,2415.9,4.13924417]
[1750454588880,17.57823594,2416.0,2415.9,4.19554417]
[1750454589075,17.5782464,2416.0,2415.9,4.19554417]
[1750454589380,17.5782464,2416.0,2415.9,4.13924417]
[1750454589381,17.20074563,2416.0,2415.9,4.13924417]
[1750454589546,17.57848977,2416.0,2415.9,4.13924417]
[1750454589751,10.75548977,2416.0,2415.9,4.19554417]
[1750454590079,17.58048977,2416.0,2415.9,4.19554417]
[1750454590383,10.7553845,2416.0,2415.9,4.19554417]
[1750454590579,17.5803845,2416.0,2415.9,4.19554417]
[1750454590783,17.58088794,2416.0,2415.9,4.13924417]
[1750454590949,17.80780441,2416.0,2415.9,4.13924417]
[1750454591149,17.80829186,2416.0,2415.9,4.13924417]
[1750454591373,17.80827415,2416.0,2415.9,4.13924417]
[1750454591573,18.35827415,2416.0,2415.9,4.13924417]
[1750454591782,18.35822806,2416.0,2415.9,4.13924417]
[1750454592159,19.0953596,2416.0,2415.8,4.13939503]
[1750454592361,11.53353337,2415.9,2415.8,4.13931528]
[1750454592753,11.53352584,2415.9,2415.8,4.13931528]
[1750454593166,11.53352431,2415.9,2415.8,4.13931528]
[1750454593455,11.53352546,2415.9,2415.7,4.13948697]
[1750454593668,17.80752582,2415.8,2415.7,4.13948697]
[1750454593984,17.80801584,2415.8,2415.7,4.13948697]
[1750454594192,17.80964757,2415.8,2415.7,4.13948697]
[1750454594498,17.80963634,2415.8,2415.7,4.13948697]
[1750454594663,11.3425,2415.7,2415.4,0.2252633]
[1750454594869,10.6093,2415.5,2415.4,4.36521947]
[1750454595065,11.3674818,2415.5,2415.4,0.2252633]
[1750454595267,14.07768553,2415.5,2415.4,0.2252633]
[1750454595569,10.55,2415.1,2415.0,4.14078674]
[1750454595892,20.1312064,2415.1,2415.0,4.14078674]
[1750454596065,7.80918233,2415.1,2415.0,4.14078674]
[1750454596267,18.35915929,2415.1,2415.0,4.14078674]
[1750454596472,11.4018,2415.0,2414.9,4.1408911]
[1750454596673,10.0,2414.9,2414.8,4.14104109]
[1750454596873,0.55,2414.8,2414.4,0.0563]
[1750454597076,10.55,2414.6,2414.2,0.7606]
[1750454597275,0.55,2414.4,2414.3,4.3870325]
[1750454597475,8.36724458,2414.4,2414.3,4.3870325]
[1750454597661,8.36727305,2414.4,2414.3,4.3870325]
[1750454598067,8.36738792,2414.4,2414.3,4.3870325]
[1750454598415,17.98722188,2414.4,2414.3,4.3870325]
[1750454598570,18.36736081,2414.4,2414.3,4.3870325]
[1750454598907,18.13926895,2414.4,2414.3,4.3870325]
[1750454599200,18.36795065,2414.4,2414.3,0.24507528]
[1750454599401,11.31087025,2414.4,2414.3,4.3870626]
[1750454599603,18.13887025,2414.4,2414.3,4.3870626]
[1750454599780,18.36653226,2414.4,2414.3,4.3870626]
[1750454599981,10.98652832,2414.4,2414.3,4.3870626]
[1750454600300,17.81253179,2414.4,2414.3,4.4433626]
[1750454601003,17.81241415,2414.4,2414.3,4.4433626]
[1750454601386,17.81241374,2414.4,2414.3,4.4433626]
[1750454601694,17.81241351,2414.4,2414.3,4.4433626]
[1750454601893,17.58477963,2414.4,2414.3,4.3870626]
[1750454602081,0.9865236,2414.4,2414.3,4.4433626]
[1750454602406,2.483,2415.3,2415.1,4.14061529]
[1750454602407,10.0,2415.2,2415.1,4.14061529]
[1750454602610,0.98573872,2415.2,2415.1,4.14061529]
[1750454602773,1.791,2415.5,2415.4,4.14010101]
[1750454603102,42.5878,2415.7,2415.6,4.13975823]
[1750454603290,33.19444575,2415.7,2415.6,4.13975823]
[1750454603491,33.19444575,2415.7,2415.5,4.13987593]
[1750454603492,30.0,2415.6,2415.5,4.13987593]
[1750454603804,40.60658728,2415.6,2415.5,4.13987593]
[1750454603972,40.98566187,2415.6,2415.5,4.13987593]
[1750454604574,41.53566187,2415.6,2415.5,4.13987593]
[1750454604818,41.53566187,2415.6,2414.9,0.8227]
[1750454604819,0.7834,2415.4,2414.6,0.7906]
[1750454605110,0.55,2414.8,2414.7,4.14119287]
[1750454605408,10.17921556,2414.8,2414.7,4.14119287]
[1750454605569,10.17921556,2414.8,2414.6,4.14139151]
[1750454605570,10.17920269,2414.8,2414.6,4.14139151]
[1750454605775,1.30784822,2414.7,2414.6,4.14139151]
[1750454605987,1.53518947,2414.7,2414.6,4.14139151]
[1750454606475,1.30783154,2414.7,2414.6,4.14139151]
[1750454606780,1.30768857,2414.7,2414.6,4.14139151]
[1750454606986,0.55,2414.7,2414.6,4.14139151]
[1750454608488,0.55,2414.6,2414.5,4.14164071]
[1750454608687,7.403,2414.6,2414.5,4.14164071]
[1750454609209,17.403,2414.6,2414.5,4.14164071]
[1750454615217,17.403,2414.6,2414.5,4.14164071]
[1750454616119,17.63037052,2414.6,2414.5,4.14164071]
[1750454616657,17.63036882,2414.6,2414.5,4.14164071]
[1750454616959,17.63036585,2414.6,2414.5,4.14164071]
[1750454617161,18.00929804,2414.6,2414.5,4.14164071]
[1750454617468,0.55,2414.4,2414.3,0.24507528]
[1750454617614,0.55,2414.4,2413.4,20.93852765]
[1750454617615,4.14364438,2413.4,2413.0,1.8078038]
[1750454617943,4.14364438,2413.4,2412.5,0.0575]
[1750454617944,0.55,2412.9,2412.5,0.0575]
[1750454618268,10.55,2412.7,2412.1,0.0575]
[1750454618478,0.41889394,2412.9,2412.6,4.14490591]
[1750454618616,0.41889394,2412.9,2412.1,0.42033519]
[1750454618617,0.41889394,2412.9,2412.8,4.14456233]
[1750454618814,0.55,2412.9,2412.8,4.20206233]
[1750454619115,10.7916,2413.6,2413.2,4.14385633]
[1750454619315,10.0,2413.4,2412.8,0.0575]
[1750454619514,0.55,2413.1,2413.0,4.20155795]
[1750454619736,17.231,2413.1,2413.0,4.20155795]
[1750454619960,30.0,2413.7,2413.1,4.14404707]
[1750454620145,0.60495607,2413.6,2413.5,4.14326948]
[1750454620342,0.7705,2414.0,2413.3,4.96452528]
[1750454620543,2.483,2414.3,2413.3,4.96452528]
[1750454620544,7.45688605,2413.9,2413.8,4.14275099]
[1750454621158,7.782,2413.9,2413.8,4.14275099]
[1750454621324,17.232,2413.9,2413.8,4.14275099]
[1750454621525,17.23,2413.9,2413.8,4.14275099]
[1750454621748,10.55,2413.9,2413.8,4.14275099]
[1750454621979,1.18483579,2414.3,2414.0,4.14238537]
[1750454622121,7.227,2414.2,2413.8,4.14278556]
[1750454622432,0.55,2414.0,2413.8,4.14278556]
[1750454622756,7.776,2413.9,2413.8,4.1428453]
[1750454622973,8.36423529,2413.9,2413.8,4.1428453]
[1750454623562,8.35823529,2413.9,2413.8,4.1428453]
[1750454624235,7.80723529,2413.9,2413.8,4.2003453]
[1750454624435,0.58823529,2413.9,2413.8,4.2003453]
[1750454624658,7.80423529,2413.9,2413.8,4.2003453]
[1750454626158,0.58823529,2413.9,2413.8,4.2003453]
[1750454626356,7.79623529,2413.9,2413.8,4.2003453]
[1750454626721,0.58823529,2413.9,2413.8,4.2003453]
[1750454626929,17.79423529,2413.9,2413.8,4.2003453]